bitfinex-derivatives/quotes_BTCF0:USTF0_20210111
["timestamp","ask_amount","ask_price","bid_price","bid_amount"]
[1610394244817,3.72836,32201.0,32150.0,4.142]
[1610394245917,1.0,32196.0,32180.0,1.0]
[1610394247717,0.13632608,32181.0,32180.0,1.0]
[1610394247918,0.22638608,32181.0,32150.0,4.142]
[1610394248123,0.22638608,32181.0,32150.0,0.0945]
[1610394248718,0.22638608,32181.0,32134.0,4.9713]
[1610394249722,0.09006,32181.0,32162.0,0.13632608]
[1610394249918,0.09006,32181.0,32169.0,1.0]
[1610394251720,0.09006,32181.0,32173.0,0.13632608]
[1610394251920,1.0,32200.0,32180.0,1.0]
[1610394253722,1.0,32200.0,32196.0,0.13632608]
[1610394253924,0.0932,32215.0,32176.0,0.099]
[1610394254533,0.0932,32215.0,32169.0,0.06857]
[1610394255136,0.0932,32215.0,32169.0,0.05597]
[1610394255338,0.0932,32215.0,32135.0,1.0]
[1610394255525,4.4524,32205.0,32148.0,4.2138]
[1610394255740,0.0943,32204.0,32148.0,4.2138]
[1610394255937,0.0943,32204.0,32169.0,0.13632608]
[1610394256726,4.54597,32205.0,32169.0,0.13632608]
[1610394257141,4.39959126,32205.0,32169.0,0.13632608]
[1610394257736,0.0929,32204.0,32169.0,0.13632608]
[1610394257937,0.13632608,32170.0,32161.0,1.0]
[1610394258541,1.0,32177.0,32161.0,1.0]
[1610394259631,4.8727,32162.0,32161.0,1.0]
[1610394259830,4.97946,32162.0,32161.0,1.0]
[1610394260032,5.11578608,32162.0,32144.0,0.10112]
[1610394260230,5.11578608,32162.0,32151.0,0.05258104]
[1610394260431,0.24308608,32162.0,32151.0,0.05258104]
[1610394260630,3.6529,32152.0,32151.0,8.104e-05]
[1610394260829,3.75343,32152.0,32151.0,8.104e-05]
[1610394262032,3.88975608,32152.0,32151.0,8.104e-05]
[1610394262232,9.88975608,32152.0,32151.0,8.104e-05]
[1610394263631,9.88975608,32152.0,32117.0,1.0]
[1610394263830,6.10053,32152.0,32117.0,1.0]
[1610394264031,4.6791,32138.0,32117.0,1.0]
[1610394264230,0.13632608,32118.0,32110.0,0.13632608]
[1610394264432,0.01147718,32119.0,32110.0,0.13632608]
[1610394264833,0.01147718,32119.0,32105.0,1.0]
[1610394266536,1.01147718,32119.0,32103.0,1.0]
[1610394267539,1.01147718,32119.0,32103.0,0.99]
[1610394267937,1.0,32114.0,32097.0,1.0]
[1610394268339,0.13632608,32098.0,32097.0,0.95]
[1610394268738,4.5057,32111.0,32096.0,0.08903]
[1610394269539,4.5057,32111.0,32096.0,0.07903]
[1610394269741,4.5057,32111.0,32092.0,0.13632608]
[1610394270246,0.13632608,32093.0,32092.0,0.13632608]
[1610394270844,0.8952173,32106.0,32092.0,0.13632608]
[1610394271243,1.0,32106.0,32092.0,0.13632608]
[1610394271444,1.0,32106.0,32092.0,0.12632608]
[1610394272447,1.0,32106.0,32105.0,0.13632608]
[1610394273246,0.2988,32135.0,32105.0,0.12632608]
[1610394273845,0.2988,32135.0,32100.0,0.10833]
[1610394274445,0.2988,32135.0,32134.0,0.13632608]
[1610394275048,0.2988,32135.0,32100.0,0.10833]
[1610394276449,0.13632608,32126.0,32117.0,0.13632608]
[1610394276648,0.21468608,32126.0,32117.0,0.13632608]
[1610394277049,0.07836,32126.0,32100.0,0.10833]
[1610394277249,0.07836,32126.0,32116.0,1.0]
[1610394278452,1.0,32132.0,32125.0,0.13632608]
[1610394279050,1.0,32132.0,32125.0,0.24298608]
[1610394279251,0.63887312,32162.0,32131.0,6.0]
[1610394279650,1.5676,32168.0,32131.0,6.0]
[1610394280051,1.5676,32168.0,32132.0,4.5505]
[1610394280251,1.5676,32168.0,32132.0,4.66314]
[1610394280452,1.5676,32168.0,32165.0,0.13632608]
[1610394280654,1.2859,32168.0,32132.0,4.66314]
[1610394280853,1.371,32168.0,32132.0,4.66314]
[1610394281255,0.0918,32167.0,32132.0,4.66314]
[1610394282056,0.371,32168.0,32132.0,4.66314]
[1610394282456,0.371,32168.0,32162.0,0.13632608]
[1610394283358,0.371,32168.0,32162.0,0.08862608]
[1610394284457,0.13632608,32163.0,32153.0,1.0]
[1610394284659,0.371,32168.0,32153.0,1.0]
[1610394285259,1.0,32165.0,32149.0,1.0]
[1610394286761,1.5,32164.0,32149.0,1.0]
[1610394287361,1.5,32164.0,32128.0,4.5131]
[1610394287760,1.5,32163.0,32128.0,4.5131]
[1610394287961,0.093,32162.0,32128.0,4.5131]
[1610394288162,0.093,32162.0,32086.0,0.2712]
[1610394288361,1.5,32155.0,32110.0,4.4851]
[1610394288560,0.13632608,32149.0,32133.0,0.13632608]
[1610394288760,0.65622608,32149.0,32133.0,0.13632608]
[1610394288960,0.5199,32149.0,32110.0,4.4851]
[1610394289159,1.0,32147.0,32130.0,1.0]
[1610394289559,1.07914,32147.0,32130.0,1.0]
[1610394290461,0.13632608,32131.0,32130.0,1.0]
[1610394290664,1.03943368,32147.0,32130.0,1.0]
[1610394290862,4.4324,32145.0,32130.0,1.0]
[1610394291061,4.4324,32145.0,32121.0,1.0]
[1610394291062,0.62364282,32138.0,32121.0,1.0]
[1610394291363,1.0,32138.0,32121.0,1.0]
[1610394291563,1.07666,32138.0,32121.0,1.0]
[1610394292465,1.07666,32138.0,32137.0,0.13632608]
[1610394292665,1.07666,32138.0,32121.0,1.0]
[1610394293466,0.07666,32138.0,32120.0,0.07466]
[1610394294065,4.61195544,32147.0,32120.0,0.07466]
[1610394295468,0.1386436,32153.0,32141.0,1.0]
[1610394296568,0.1386436,32153.0,32151.0,0.13632608]
[1610394297069,1.0,32157.0,32151.0,0.13632608]
[1610394297270,1.0,32157.0,32141.0,1.0]
[1610394298471,1.0,32157.0,32156.0,0.13632608]
[1610394299471,0.0851,32168.0,32156.0,0.13632608]
[1610394299671,0.0937,32172.0,32156.0,0.13632608]
[1610394300572,0.0937,32172.0,32161.0,0.13632608]
[1610394301076,0.1883,32178.0,32161.0,0.13632608]
[1610394301275,1.0,32172.0,32161.0,0.13632608]
[1610394301474,1.11169,32172.0,32161.0,0.13632608]
[1610394302076,1.20409,32172.0,32161.0,0.13632608]
[1610394302476,1.20409,32172.0,32165.0,0.13632608]
[1610394304476,0.13632608,32166.0,32165.0,0.13632608]
[1610394306381,1.11169,32172.0,32156.0,1.0]
[1610394306981,1.11169,32172.0,32171.0,0.13632608]
[1610394307382,0.11169,32172.0,32171.0,1.13632608]
[1610394307581,0.13632608,32182.0,32171.0,1.13632608]
[1610394307780,0.2933,32187.0,32171.0,1.13632608]
[1610394308984,0.2933,32187.0,32185.0,0.13632608]
[1610394309384,1.0,32190.0,32185.0,0.13632608]
[1610394310883,0.13632608,32187.0,32185.0,0.13632608]
[1610394311083,0.20532608,32187.0,32185.0,0.13632608]
[1610394311282,0.069,32187.0,32185.0,0.13632608]
[1610394311888,0.02732801,32197.0,32183.0,4.5347]
[1610394312485,0.2729,32210.0,32183.0,4.5347]
[1610394312685,0.0933,32223.0,32183.0,4.5347]
[1610394312885,1.63389329,32226.0,32183.0,4.5347]
[1610394313085,0.2795,32225.0,32216.0,0.13632608]
[1610394313290,1.0,32218.0,32216.0,0.13632608]
[1610394313486,1.09453,32218.0,32216.0,0.13632608]
[1610394313687,1.09453,32218.0,32216.0,0.78102608]
[1610394314090,1.09453,32218.0,32216.0,0.13632608]
[1610394314288,1.09453,32218.0,32217.0,3.7474]
[1610394314488,1.0,32218.0,32217.0,3.7474]
[1610394315087,1.0,32218.0,32217.0,3.88372608]
[1610394315287,0.0923,32254.0,32217.0,3.88372608]
[1610394315488,1.63045207,32261.0,32217.0,0.13632608]
[1610394315688,1.85276118,32264.0,32217.0,0.13632608]
[1610394315689,0.2767,32264.0,32217.0,0.13632608]
[1610394315888,0.2767,32264.0,32234.0,3.6447]
[1610394316289,0.094,32271.0,32234.0,3.71536]
[1610394316491,0.2838,32275.0,32234.0,0.07066]
[1610394316693,0.06276374,32275.0,32250.0,4.4105]
[1610394316893,1.62306135,32281.0,32250.0,4.4105]
[1610394317292,1.62306135,32281.0,32271.0,1.0]
[1610394317492,0.06924434,32282.0,32271.0,1.0]
[1610394319092,0.06924434,32282.0,32272.0,4.3738]
[1610394319295,0.06924434,32282.0,32257.0,0.10348]
[1610394319493,0.13970434,32282.0,32259.0,4.9952]
[1610394319694,0.13970434,32282.0,32211.0,1.0]
[1610394319894,0.13970434,32282.0,32238.0,3.8543]
[1610394320094,0.13970434,32282.0,32266.0,0.13632608]
[1610394320894,0.13970434,32282.0,32266.0,0.11572608]
[1610394321094,0.13970434,32282.0,32266.0,0.07302608]
[1610394321294,0.13970434,32282.0,32270.0,1.0]
[1610394321495,1.0,32286.0,32281.0,5.0115]
[1610394321695,1.0,32286.0,32270.0,1.0]
[1610394321897,0.25571,32286.0,32285.0,5.0027]
[1610394322096,5.0,32302.0,32285.0,5.0027]
[1610394322294,1.60181836,32336.0,32285.0,6.0027]
[1610394322495,0.06880235,32349.0,32285.0,6.0]
[1610394322695,0.06880235,32349.0,32296.0,4.8507]
[1610394322895,0.06880235,32349.0,32296.0,4.93324]
[1610394323098,0.06880235,32349.0,32296.0,0.08254]
[1610394323297,4.4257,32335.0,32296.0,0.08254]
[1610394323495,4.49617,32335.0,32296.0,0.08254]
[1610394323699,0.13632608,32310.0,32306.0,0.13632608]
[1610394323896,0.07955,32310.0,32306.0,0.13632608]
[1610394325100,0.07955,32310.0,32302.0,4.5492]
[1610394325699,0.07955,32310.0,32309.0,0.13632608]
[1610394326101,0.07047,32335.0,32309.0,0.63452608]
[1610394327805,0.07047,32335.0,32334.0,0.13632608]
[1610394328207,0.07047,32335.0,32334.0,0.13444139]
[1610394328605,0.06880235,32349.0,32334.0,0.13444139]
[1610394329206,0.06880235,32349.0,32327.0,4.3661]
[1610394329405,0.17040235,32349.0,32327.0,4.3661]
[1610394329806,0.17040235,32349.0,32348.0,0.13632608]
[1610394330505,0.17040235,32349.0,32327.0,4.3661]
[1610394331708,0.17040235,32349.0,32348.0,0.13632608]
[1610394331909,0.17040235,32349.0,32348.0,4.21552608]
[1610394332113,3.6162,32407.0,32348.0,4.21552608]
[1610394332310,1.0,32424.0,32348.0,0.13632608]
[1610394332513,2.0583304,32428.0,32369.0,5.1141]
[1610394332711,1.0,32414.0,32369.0,5.1141]
[1610394332911,1.07591,32414.0,32348.0,6.0]
[1610394333112,0.84276961,32414.0,32361.0,4.2408]
[1610394333311,0.07591,32414.0,32361.0,4.2408]
[1610394333711,0.07591,32414.0,32346.0,0.09448]
[1610394333712,0.07591,32414.0,32390.0,0.13632608]
[1610394334718,0.07591,32414.0,32390.0,0.5894]
[1610394335512,0.07591,32414.0,32401.0,4.9789]
[1610394335713,0.07591,32414.0,32413.0,0.13632608]
[1610394335913,0.2787,32455.0,32413.0,0.84512608]
[1610394336512,0.1556,32499.0,32413.0,0.13632608]
[1610394336712,0.1556,32499.0,32421.0,4.3632]
[1610394336713,4.4983,32494.0,32421.0,4.3632]
[1610394337316,1.0,32495.0,32413.0,0.13632608]
[1610394337515,0.16725037,32441.0,32413.0,0.13632608]
[1610394337713,0.16725037,32441.0,32412.0,0.09749]
[1610394337913,4.1331,32430.0,32380.0,4.4012]
[1610394338117,4.24599,32430.0,32380.0,4.4012]
[1610394339717,4.24599,32430.0,32426.0,0.13632608]
[1610394339918,4.24599,32430.0,32380.0,4.4012]
[1610394341719,4.24599,32430.0,32429.0,0.13632608]
[1610394341919,0.11289,32430.0,32429.0,0.13632608]
[1610394342319,0.11289,32430.0,32429.0,0.1344465]
[1610394343120,0.16725037,32441.0,32429.0,0.1344465]
[1610394343523,0.16725037,32441.0,32429.0,1.1344465]
[1610394343719,0.16725037,32441.0,32434.0,0.13632608]
[1610394344120,0.16725037,32441.0,32429.0,1.0]
[1610394344543,0.16725037,32441.0,32429.0,0.8155]
[1610394344736,1.0,32431.0,32415.0,1.0]
[1610394344944,0.10277,32431.0,32413.0,1.0]
[1610394345142,0.08851,32449.0,32429.0,4.2944]
[1610394345345,0.95723678,32516.0,32429.0,0.10547]
[1610394345530,0.95517611,32541.0,32430.0,0.0926]
[1610394345723,0.95517611,32541.0,32462.0,5.0666]
[1610394345924,0.1556,32548.0,32462.0,5.0666]
[1610394346123,0.092,32547.0,32462.0,5.0666]
[1610394346324,0.16989,32547.0,32485.0,4.3174]
[1610394346522,0.16989,32547.0,32527.0,0.13632608]
[1610394346723,0.16989,32547.0,32485.0,4.3174]
[1610394346924,0.07789,32547.0,32485.0,4.3174]
[1610394347127,0.07789,32547.0,32487.0,1.0]
[1610394348325,0.17099,32547.0,32487.0,1.0]
[1610394348525,0.13632608,32493.0,32487.0,1.0]
[1610394348726,0.23288608,32493.0,32487.0,1.0]
[1610394349125,1.0,32488.0,32472.0,1.0]
[1610394349325,0.85753126,32488.0,32472.0,1.0]
[1610394349526,1.0,32482.0,32471.0,4.2301]
[1610394349727,1.09341,32482.0,32466.0,6.0096]
[1610394350728,1.09341,32482.0,32481.0,0.13632608]
[1610394351529,0.09341,32482.0,32466.0,5.0096]
[1610394351729,0.09341,32482.0,32426.0,1.0]
[1610394351929,0.09341,32482.0,32446.0,3.4841]
[1610394353529,0.09341,32482.0,32442.0,0.08959]
[1610394353729,0.09341,32482.0,32445.0,5.0549]
[1610394353929,0.09341,32482.0,32442.0,0.08959]
[1610394354330,0.09341,32482.0,32456.0,4.5743]
[1610394354731,0.09656,32493.0,32456.0,4.5743]
[1610394354933,0.0914,32528.0,32456.0,4.5743]
[1610394355331,0.0914,32528.0,32496.0,0.13632608]
[1610394355534,0.0914,32528.0,32456.0,4.5743]
[1610394355733,0.20088,32528.0,32456.0,4.5743]
[1610394357337,0.5642,32527.0,32495.0,0.13632608]
[1610394358140,0.2837,32527.0,32495.0,0.13632608]
[1610394358338,0.2837,32527.0,32484.0,4.17]
[1610394359339,0.2837,32527.0,32445.0,1.0]
[1610394359540,0.2837,32527.0,32442.0,5.13619]
[1610394359740,0.2791,32526.0,32442.0,5.13619]
[1610394360542,0.2791,32526.0,32469.0,0.13632608]
[1610394361344,0.2791,32526.0,32463.0,4.9556]
[1610394361742,0.2791,32526.0,32451.0,3.8372]
[1610394362543,0.2791,32526.0,32467.0,0.13632608]
[1610394362742,0.17334683,32526.0,32467.0,0.13632608]
[1610394362943,0.17334683,32526.0,32469.0,3.6843]
[1610394364645,0.17334683,32526.0,32475.0,0.13632608]
[1610394365546,1.0,32497.0,32481.0,1.0]
[1610394365744,1.09278,32497.0,32481.0,1.0]
[1610394366144,0.86383994,32497.0,32481.0,1.0]
[1610394366346,0.09278,32497.0,32469.0,3.6843]
[1610394366544,0.09278,32497.0,32481.0,0.13632608]
[1610394366744,0.09278,32497.0,32457.0,4.113]
[1610394368550,0.093,32496.0,32466.0,0.13632608]
[1610394368748,0.093,32496.0,32430.0,0.2873]
[1610394368949,4.3538,32481.0,32427.0,3.627]
[1610394369148,0.10011,32481.0,32417.0,0.9562]
[1610394369350,0.10011,32481.0,32417.0,0.2515]
[1610394369549,5.1049,32419.0,32334.0,1.0]
[1610394369749,5.1049,32419.0,32299.0,1.73678857]
[1610394369750,5.20558,32419.0,32332.0,3.6213]
[1610394369951,0.10068,32419.0,32327.0,1.0]
[1610394370151,4.7988,32398.0,32327.0,1.0]
[1610394370351,4.88407,32398.0,32327.0,1.0]
[1610394370751,0.0931,32397.0,32327.0,1.0]
[1610394370949,4.88407,32398.0,32327.0,1.0]
[1610394371154,4.88407,32398.0,32327.0,1.07424]
[1610394371751,4.88407,32398.0,32327.0,0.07424]
[1610394371953,4.97537,32398.0,32327.0,0.07424]
[1610394372353,4.97537,32398.0,32327.0,0.05834]
[1610394372954,0.17657,32398.0,32327.0,0.05834]
[1610394373154,3.603,32372.0,32338.0,0.13632608]
[1610394373355,3.603,32372.0,32327.0,0.05834]
[1610394373554,3.603,32372.0,32327.0,0.04924]
[1610394373756,0.10875,32373.0,32327.0,0.04924]
[1610394373956,4.4302,32349.0,32318.0,0.08094]
[1610394374156,4.52723,32349.0,32318.0,0.08094]
[1610394374354,0.0933,32348.0,32318.0,0.08094]
[1610394374555,0.0933,32348.0,32318.0,4e-05]
[1610394374954,4.61883,32349.0,32288.0,4.6708]
[1610394374955,4.52723,32349.0,32288.0,4.6708]
[1610394375154,4.52723,32349.0,32288.0,4.78263]
[1610394375356,4.52723,32349.0,32289.0,0.0935]
[1610394375856,4.66355608,32349.0,32348.0,0.13632608]
[1610394376055,0.23335608,32349.0,32348.0,0.13632608]
[1610394376258,0.09703,32349.0,32334.0,0.07938]
[1610394376456,0.0912,32383.0,32334.0,0.07938]
[1610394376457,0.10506,32364.0,32334.0,0.07938]
[1610394376857,1.0,32427.0,32347.0,4.2307]
[1610394377056,1.0,32427.0,32347.0,4.3402]
[1610394377257,1.0,32427.0,32347.0,0.1095]
[1610394377457,1.0,32427.0,32371.0,4.3358]
[1610394377661,1.0,32427.0,32371.0,4.44337]
[1610394377857,0.0931,32449.0,32394.0,1.0]
[1610394378057,0.633062,32476.0,32394.0,1.10718]
[1610394378458,0.1801824,32450.0,32436.0,0.13632608]
[1610394378658,0.1801824,32450.0,32426.0,0.07465]
[1610394378859,0.07069,32450.0,32426.0,0.07465]
[1610394380058,0.09223,32463.0,32426.0,0.07465]
[1610394380257,0.09223,32463.0,32428.0,5.172]
[1610394381057,0.13632608,32480.0,32462.0,0.13632608]
[1610394381857,0.6393667,32500.0,32458.0,0.06851]
[1610394382059,0.63934549,32502.0,32458.0,0.06851]
[1610394382258,0.63934367,32503.0,32458.0,0.06851]
[1610394382559,0.6405151,32506.0,32458.0,0.06851]
[1610394382959,0.64046839,32509.0,32458.0,0.06851]
[1610394383160,0.13632608,32504.0,32496.0,0.13632608]
[1610394383362,0.21817608,32504.0,32496.0,0.13632608]
[1610394383762,0.08185,32504.0,32458.0,0.06851]
[1610394383969,0.13632608,32490.0,32467.0,3.774]
[1610394384161,0.08185,32504.0,32467.0,3.774]
[1610394384361,0.08185,32504.0,32467.0,3.88635]
[1610394384562,0.0932,32503.0,32467.0,3.88635]
[1610394385181,0.78467991,32518.0,32495.0,0.13632608]
[1610394385370,0.11381,32516.0,32495.0,0.13632608]
[1610394385567,0.78575586,32520.0,32495.0,0.08933]
[1610394385770,0.0916,32521.0,32495.0,0.08933]
[1610394385963,0.08736,32526.0,32495.0,0.08933]
[1610394386563,0.091,32525.0,32495.0,0.08933]
[1610394386763,0.89418958,32531.0,32495.0,0.08933]
[1610394386961,0.8941742,32532.0,32495.0,0.08933]
[1610394387165,1.03050028,32532.0,32513.0,0.13632608]
[1610394387372,1.03050028,32532.0,32509.0,0.09935]
[1610394387570,1.59720028,32532.0,32479.0,3.6886]
[1610394387786,0.9865082,32531.0,32458.0,0.06851]
[1610394387969,5.1201,32524.0,32446.0,3.6989]
[1610394388168,0.0918,32523.0,32446.0,3.6989]
[1610394388581,0.646127,32511.0,32446.0,3.6989]
[1610394388771,0.731957,32511.0,32421.0,0.0915]
[1610394388980,0.08583,32511.0,32450.0,3.5461]
[1610394389173,0.08583,32511.0,32470.0,3.6286]
[1610394389374,0.08583,32511.0,32470.0,3.72276]
[1610394389562,0.08583,32511.0,32471.0,0.0922]
[1610394389760,0.50147749,32516.0,32470.0,3.72276]
[1610394389962,0.1841,32521.0,32470.0,3.72276]
[1610394391162,0.1987,32535.0,32470.0,3.72276]
[1610394391362,0.1053,32535.0,32470.0,3.72276]
[1610394391767,1.0,32537.0,32521.0,1.0]
[1610394392162,0.13632608,32523.0,32521.0,0.75890151]
[1610394392362,0.0911,32522.0,32507.0,0.08628]
[1610394392561,0.0911,32522.0,32470.0,3.72276]
[1610394392562,0.08857,32530.0,32470.0,3.72276]
[1610394393763,0.90216779,32541.0,32470.0,3.72276]
[1610394393963,0.90210096,32545.0,32470.0,3.72276]
[1610394394367,0.90280732,32547.0,32470.0,3.72276]
[1610394394563,0.90280732,32547.0,32470.0,3.81556]
[1610394394764,0.90242288,32545.0,32524.0,0.13632608]
[1610394394963,0.97099288,32545.0,32524.0,0.13632608]
[1610394395164,0.90222349,32544.0,32524.0,0.13632608]
[1610394395565,0.06857,32545.0,32524.0,0.13632608]
[1610394395764,0.06857,32545.0,32524.0,0.20553608]
[1610394395965,0.06857,32545.0,32524.0,0.06921]
[1610394396165,0.06857,32545.0,32514.0,0.03595]
[1610394396365,0.06857,32545.0,32472.0,1.0]
[1610394396764,0.13632608,32517.0,32504.0,0.13632608]
[1610394396967,0.09183,32517.0,32470.0,0.09416]
[1610394397166,0.09183,32517.0,32487.0,3.5964]
[1610394397364,0.09183,32517.0,32487.0,3.67908]
[1610394397969,0.90155358,32543.0,32487.0,3.67908]
[1610394398170,0.06857,32545.0,32487.0,3.67908]
[1610394398768,0.77207,32545.0,32487.0,3.67908]
[1610394399169,0.90151707,32540.0,32487.0,3.67908]
[1610394399372,0.0919,32539.0,32487.0,3.5964]
[1610394399574,0.9019675,32531.0,32487.0,3.5964]
[1610394399769,1.0131875,32531.0,32487.0,3.5964]
[1610394399971,0.11122,32531.0,32487.0,3.5964]
[1610394400370,1.01358748,32531.0,32487.0,3.5964]
[1610394400672,0.90249918,32530.0,32487.0,3.5964]
[1610394400873,0.90249918,32530.0,32508.0,0.13632608]
[1610394401072,0.90257251,32527.0,32508.0,0.13632608]
[1610394401473,0.20322,32531.0,32508.0,0.13632608]
[1610394401973,0.11122,32531.0,32508.0,0.13632608]
[1610394402575,0.84202951,32535.0,32508.0,0.13632608]
[1610394402779,0.06857,32545.0,32534.0,0.13632608]
[1610394402976,1.26388248,32549.0,32534.0,0.13632608]
[1610394403176,1.26388248,32549.0,32512.0,0.10487]
[1610394403177,1.2636745,32557.0,32522.0,0.07849]
[1610394403377,0.10713,32546.0,32522.0,0.07849]
[1610394404177,0.10713,32546.0,32512.0,0.10487]
[1610394404780,0.10713,32546.0,32544.0,0.13632608]
[1610394404978,0.04864629,32560.0,32544.0,0.13632608]
[1610394405178,0.04864629,32560.0,32512.0,0.10487]
[1610394405378,0.14737629,32560.0,32512.0,0.10487]
[1610394405579,0.79384536,32553.0,32512.0,0.10487]
[1610394405778,0.95532536,32553.0,32512.0,0.10487]
[1610394405981,0.79391198,32551.0,32512.0,0.10487]
[1610394406379,0.79391198,32551.0,32514.0,0.03]
[1610394406779,0.13632608,32530.0,32528.0,1.0]
[1610394407383,0.07836,32532.0,32528.0,0.99812647]
[1610394407581,0.07836,32532.0,32518.0,1.0]
[1610394408384,0.0923,32531.0,32518.0,1.0]
[1610394408884,0.13632608,32519.0,32518.0,1.0]
[1610394409083,0.22328608,32519.0,32518.0,1.0]
[1610394409685,6.08696,32519.0,32514.0,0.03]
[1610394409886,6.08696,32519.0,32479.0,3.8155]
[1610394409887,6.72436,32519.0,32479.0,3.8155]
[1610394410084,6.08696,32519.0,32478.0,0.4389]
[1610394410284,3.501,32500.0,32478.0,0.4389]
[1610394410486,1.0,32483.0,32451.0,0.2994]
[1610394410685,1.10658,32483.0,32431.0,0.2959]
[1610394410885,1.10658,32483.0,32429.0,4.8963]
[1610394411085,1.10658,32483.0,32407.0,0.288]
[1610394411284,4.4898,32478.0,32424.0,3.9941]
[1610394411486,0.0933,32477.0,32424.0,3.9941]
[1610394411685,0.0933,32477.0,32470.0,0.21191755]
[1610394411887,0.0933,32477.0,32470.0,0.15571755]
[1610394412687,0.0933,32477.0,32470.0,0.14561755]
[1610394412888,0.13632608,32471.0,32424.0,3.92261755]
[1610394413087,0.21983608,32471.0,32376.0,0.2914]
[1610394413291,3.8576,32461.0,32391.0,4.7603]
[1610394413489,3.93725,32461.0,32392.0,0.0934]
[1610394413686,3.93725,32461.0,32392.0,0.08775]
[1610394414486,0.0912,32460.0,32392.0,0.08775]
[1610394415687,0.0922,32459.0,32392.0,0.08775]
[1610394416487,1.0,32437.0,32392.0,0.08775]
[1610394417693,0.0922,32436.0,32392.0,0.08775]
[1610394418091,1.0,32437.0,32392.0,0.08775]
[1610394418491,0.06855,32441.0,32392.0,0.08775]
[1610394418693,0.06855,32441.0,32370.0,3.6984]
[1610394419092,0.0936,32440.0,32370.0,3.6984]
[1610394421296,0.0936,32440.0,32401.0,3.8783]
[1610394421499,0.06855,32441.0,32401.0,3.96554]
[1610394421697,0.01820814,32454.0,32401.0,3.96554]
[1610394422098,0.01820522,32468.0,32401.0,3.96554]
[1610394422498,0.83522941,32469.0,32401.0,3.96554]
[1610394422499,0.31249943,32469.0,32401.0,3.96554]
[1610394422901,1.08351,32471.0,32402.0,1.5]
[1610394423499,0.93226752,32471.0,32411.0,4.2852]
[1610394423697,0.10658,32483.0,32470.0,0.13632608]
[1610394423898,1.0,32561.0,32470.0,0.13632608]
[1610394423899,0.01819063,32493.0,32470.0,0.13632608]
[1610394424097,0.01819063,32493.0,32456.0,0.09904]
[1610394424098,0.30719063,32493.0,32456.0,0.09904]
[1610394424297,0.40355063,32493.0,32456.0,0.09904]
[1610394424499,0.09636,32493.0,32456.0,0.09904]
[1610394425701,0.11125,32500.0,32492.0,0.13632608]
[1610394426901,0.11125,32500.0,32485.0,0.09265]
[1610394427807,0.11125,32500.0,32499.0,0.13632608]
[1610394428007,0.01817063,32520.0,32499.0,0.13632608]
[1610394428405,0.64784587,32522.0,32499.0,0.13632608]
[1610394428406,0.55813027,32522.0,32499.0,0.13632608]
[1610394428807,0.01816584,32521.0,32499.0,0.13632608]
[1610394429007,0.10950584,32521.0,32499.0,0.13632608]
[1610394429208,0.01816674,32519.0,32499.0,0.13632608]
[1610394429408,0.01816674,32519.0,32485.0,0.09265]
[1610394430011,0.01816534,32518.0,32485.0,0.09265]
[1610394430810,0.01817215,32516.0,32485.0,0.09265]
[1610394431209,0.55806998,32515.0,32478.0,0.07708]
[1610394431411,0.55806998,32515.0,32469.0,4.9455]
[1610394431609,0.09134,32521.0,32469.0,4.9455]
[1610394431808,0.09134,32521.0,32514.0,0.13632608]
[1610394432611,0.09134,32521.0,32514.0,0.04262365]
[1610394433712,0.09134,32521.0,32503.0,0.06944]
[1610394434112,0.09989,32521.0,32503.0,0.06944]
[1610394435815,0.09989,32521.0,32520.0,0.13632608]
[1610394436414,0.01830432,32527.0,32520.0,0.13445233]
[1610394436617,0.56379968,32524.0,32520.0,0.13445233]
[1610394437016,0.01835688,32525.0,32520.0,0.13445233]
[1610394437217,0.01835688,32525.0,32503.0,0.06944]
[1610394437418,0.01839032,32523.0,32503.0,0.06944]
[1610394437618,0.01839032,32523.0,32491.0,3.8841]
[1610394437820,0.01839032,32523.0,32522.0,0.13632608]
[1610394438224,0.56484939,32525.0,32492.0,0.07936]
[1610394438622,0.01841298,32515.0,32492.0,0.07936]
[1610394438821,0.10524298,32515.0,32492.0,0.07936]
[1610394439022,0.01841595,32501.0,32492.0,0.07936]
[1610394439221,0.10746595,32501.0,32473.0,4.3224]
[1610394439622,0.01843524,32500.0,32473.0,4.3224]
[1610394439822,0.01843524,32500.0,32499.0,0.13632608]
[1610394440022,0.08905,32501.0,32499.0,0.13632608]
[1610394440223,0.56617108,32503.0,32492.0,0.07881]
[1610394440423,0.01843433,32503.0,32492.0,0.07881]
[1610394440824,0.01844281,32505.0,32492.0,0.07881]
[1610394441022,0.40865861,32506.0,32492.0,0.07881]
[1610394441626,0.65776111,32506.0,32492.0,0.07881]
[1610394441823,0.65776111,32506.0,32505.0,0.13632608]
[1610394442023,0.65774182,32507.0,32505.0,0.13632608]
[1610394442423,0.44985791,32514.0,32492.0,0.07881]
[1610394442424,0.65785911,32508.0,32492.0,0.07881]
[1610394442925,0.65783174,32511.0,32492.0,0.07881]
[1610394443328,1.25383388,32514.0,32492.0,0.07881]
[1610394443329,0.65781417,32513.0,32492.0,0.07881]
[1610394443726,1.10771358,32514.0,32492.0,0.07881]
[1610394443926,0.44985791,32514.0,32513.0,0.13632608]
[1610394444527,0.65774882,32516.0,32513.0,0.13632608]
[1610394444926,0.80387463,32518.0,32513.0,0.13632608]
[1610394444927,0.65777233,32518.0,32513.0,0.13632608]
[1610394445327,0.65774417,32517.0,32513.0,0.13632608]
[1610394445727,0.75355417,32517.0,32513.0,0.13632608]
[1610394446126,0.75355417,32517.0,32492.0,0.07881]
[1610394446127,0.09581,32517.0,32492.0,0.07881]
[1610394446329,0.09581,32517.0,32480.0,0.09652]
[1610394446529,1.10733746,32516.0,32466.0,4.6565]